bitfinex/quotes_SOLUSD_20220104
["timestamp","ask_amount","ask_price","bid_price","bid_amount"]
[1641305006233,1.63915116,172.17,172.05,2.4804664]
[1641305006533,0.88234983,172.16,172.05,2.4804664]
[1641305010735,1.63915116,172.16,172.05,2.4804664]
[1641305010935,2.13915116,172.16,172.06,8.4]
[1641305011138,0.5,172.16,172.06,8.4]
[1641305011336,0.5,172.16,172.06,8.9]
[1641305011537,3.43635116,172.18,172.06,8.4]
[1641305012141,3.69635116,172.18,172.06,8.4]
[1641305013849,1.42669368,172.17,172.06,8.4]
[1641305014042,1.68669368,172.17,172.06,8.4]
[1641305014243,2.18669368,172.17,172.06,8.4]
[1641305014443,3.82584484,172.17,172.06,8.4]
[1641305015047,3.82584484,172.17,172.05,2.4804664]
[1641305015447,1.63915116,172.16,172.05,2.4804664]
[1641305015848,2.39915116,172.16,172.05,2.4804664]
[1641305016247,3.82584484,172.16,172.05,2.4804664]
[1641305017247,5.14304484,172.16,172.05,2.4804664]
[1641305017948,3.71635116,172.16,172.05,2.4804664]
[1641305018349,2.0772,172.16,172.05,2.4804664]
[1641305022080,10.7982,172.16,172.05,2.4804664]
[1641305022281,12.43735116,172.16,172.05,2.4804664]
[1641305022988,9.82669368,172.15,171.95,8.4]
[1641305023180,9.82669368,172.15,171.94,1.2493]
[1641305023381,105.81399368,172.14,171.94,1.2493]
[1641305023579,105.81399368,172.14,171.92,9.4]
[1641305023580,8.4,172.13,171.92,9.4]
[1641305023781,1.63915116,172.1,171.92,9.4]
[1641305024081,8.4,172.09,171.93,33.82305492]
[1641305024285,9.82669368,172.09,171.93,33.82305492]
[1641305024479,24.9573,172.08,171.94,24.4558]
[1641305024883,25.7173,172.08,171.94,24.4558]
[1641305026085,25.7173,172.08,171.94,24.7158]
[1641305026285,25.7173,172.08,171.94,25.2158]
[1641305026484,25.7173,172.08,171.94,33.6158]
[1641305026685,25.7173,172.08,171.94,33.3558]
[1641305026884,25.7173,172.08,171.94,33.6158]
[1641305027486,25.7173,172.08,171.94,33.3558]
[1641305027687,34.1173,172.08,171.94,8.4]
[1641305027889,35.54399368,172.08,171.93,33.82305492]
[1641305028590,74.5138,172.07,171.93,33.82305492]
[1641305028991,74.7738,172.07,171.93,33.82305492]
[1641305029193,74.5138,172.07,171.94,8.4]
[1641305029391,74.5138,172.07,171.94,10.2342]
[1641305029591,74.5138,172.07,171.94,10.4942]
[1641305030394,75.2738,172.07,171.94,10.4942]
[1641305031396,75.0138,172.07,171.94,10.4942]
[1641305031595,75.0138,172.07,171.94,35.4328]
[1641305032495,0.5,172.07,171.94,35.4328]
[1641305032896,23.6694,172.1,171.94,35.4328]
[1641305033298,23.9294,172.1,171.94,35.4328]
[1641305033499,32.3294,172.1,171.94,35.1728]
[1641305034602,1.2863,172.09,171.94,35.1728]
[1641305034999,2.0463,172.09,171.94,35.1728]
[1641305035400,1.42669368,172.08,171.94,35.1728]
[1641305035603,1.68669368,172.08,171.94,35.1728]
[1641305035899,2.18669368,172.08,171.94,8.9]
[1641305036101,10.58669368,172.08,171.94,0.5]
[1641305036300,1.42669368,172.07,171.94,0.5]
[1641305036501,24.18709368,172.07,171.93,34.32305492]
[1641305036701,23.2604,172.07,171.93,34.32305492]
[1641305037705,24.588,172.07,171.93,34.32305492]
[1641305037905,24.588,172.07,171.92,24.9857]
[1641305038108,9.82669368,172.06,171.92,32.0341]
[1641305038309,15.58369368,172.06,171.92,1.0]
[1641305038507,100.99989368,172.05,171.92,1.0]
[1641305038749,8.4,172.04,171.92,1.0]
[1641305038948,10.32669368,172.04,171.92,1.0]
[1641305039150,1.42669368,172.03,171.92,1.0]
[1641305039350,8.4,172.02,171.92,1.0]
[1641305039556,8.66,172.02,171.92,1.0]
[1641305039753,10.58669368,172.02,171.92,1.0]
[1641305041759,8.9,172.02,171.92,1.0]
[1641305041955,1.63915116,172.05,171.93,8.4]
[1641305042157,1.63915116,172.04,171.93,9.82669368]
[1641305042398,1.63915116,172.04,171.93,28.6484938]
[1641305042597,1.63915116,172.04,171.94,21.89018748]
[1641305042795,0.02,172.08,171.95,8.4]
[1641305043096,0.02,172.08,171.96,31.09490056]
[1641305043301,25.7551,172.1,171.98,2.87296713]
[1641305043495,25.7551,172.1,171.98,11.27296713]
[1641305044295,26.0151,172.1,171.98,11.27296713]
[1641305044498,26.5151,172.1,171.98,11.27296713]
[1641305046297,0.5,172.1,171.98,11.27296713]
[1641305046498,79.8306,172.11,171.98,11.77296713]
[1641305046698,79.3306,172.11,171.98,13.19966081]
[1641305046901,79.13241282,172.12,171.98,13.45966081]
[1641305047098,79.63241282,172.12,171.98,13.45966081]
[1641305047298,79.13241282,172.12,171.98,13.45966081]
[1641305047498,79.13241282,172.12,171.98,24.05433024]
[1641305048302,6.07061282,172.12,171.98,25.39893024]
[1641305048603,6.33061282,172.12,171.98,25.39893024]
[1641305049201,6.83061282,172.12,171.98,23.97223656]
[1641305049903,6.83061282,172.12,171.98,23.47223656]
[1641305050305,6.83061282,172.12,171.98,24.89893024]
[1641305051209,6.83061282,172.12,171.98,24.39893024]
[1641305051404,6.83061282,172.12,171.98,13.80426081]
[1641305053109,6.83061282,172.12,171.98,14.30426081]
[1641305053937,6.83061282,172.12,171.98,14.04426081]
[1641305054540,6.83061282,172.12,171.98,12.61756713]
[1641305055342,6.83061282,172.12,171.98,12.11756713]
[1641305055743,6.83061282,172.12,171.98,12.61756713]
[1641305056346,6.83061282,172.12,171.98,12.11756713]
[1641305056543,6.83061282,172.12,171.98,12.61756713]
[1641305056743,6.83061282,172.12,171.98,12.87756713]
[1641305057145,6.83061282,172.12,171.98,12.37756713]
[1641305057546,6.83061282,172.12,171.98,12.61756713]
[1641305058344,6.83061282,172.12,171.98,12.11756713]
[1641305059843,1.2853,172.11,171.98,12.11756713]
[1641305060049,1.5453,172.11,171.98,12.11756713]
[1641305060244,2.0453,172.11,171.98,12.11756713]
[1641305061254,6.06997977,172.1,171.98,12.11756713]
[1641305061448,6.56997977,172.1,171.98,12.11756713]
[1641305061644,6.82997977,172.1,171.98,12.11756713]
[1641305063046,6.82997977,172.1,171.98,2.37296713]
[1641305063948,81.25707977,172.1,171.98,2.37296713]
[1641305066451,80.99707977,172.1,171.98,2.37296713]
[1641305067850,81.25707977,172.1,171.98,2.37296713]
[1641305068955,80.99707977,172.1,171.98,2.37296713]
[1641305070453,81.25707977,172.1,171.98,2.37296713]
[1641305072756,75.1871,172.1,171.98,2.37296713]
[1641305073457,75.1871,172.1,171.96,8.4]
[1641305073657,8.4,172.09,171.94,24.0303]
[1641305073856,10.1957,172.09,171.94,24.0303]
[1641305074160,10.4557,172.09,171.94,24.0303]
[1641305074357,23.8938,172.08,171.96,2.68030105]
[1641305074557,24.1538,172.08,171.96,2.68030105]
[1641305074757,24.6538,172.08,171.96,2.68030105]
[1641305079264,26.29295116,172.08,171.96,2.68030105]
[1641305079459,2.39915116,172.08,171.96,2.68030105]
[1641305080061,0.76,172.08,171.96,2.68030105]
[1641305080363,6.32751953,172.08,171.96,2.68030105]
[1641305080760,6.32751953,172.08,171.96,11.08030105]
[1641305081463,6.32751953,172.08,171.96,2.68030105]
[1641305081662,0.26,172.08,171.96,2.68030105]
[1641305082064,26.8853,172.09,171.96,2.68030105]
[1641305085066,6.06745941,172.08,171.96,2.68030105]
[1641305085464,6.82745941,172.08,171.96,2.68030105]
[1641305086270,6.82745941,172.08,171.95,25.8093]
[1641305086668,8.4,172.07,171.95,25.8093]
[1641305086974,9.16,172.07,171.95,25.8093]
[1641305087167,10.401,172.07,171.93,2.58859115]
[1641305087398,23.3155,172.06,171.93,2.58859115]
[1641305087598,23.5755,172.06,171.93,2.58859115]
[1641305087799,24.0755,172.06,171.93,2.58859115]
[1641305087999,24.0755,172.06,171.92,2.3342]
[1641305088199,8.4,172.05,171.92,1.0]
[1641305088399,16.50507224,172.04,171.92,1.0]
[1641305088600,8.73,172.02,171.92,1.0]
[1641305088798,23.9196,172.01,171.92,1.0]
[1641305088998,30.6846,172.01,171.92,1.0]
[1641305089198,31.1846,172.01,171.92,1.0]
[1641305089399,32.5162,172.01,171.92,1.0]
[1641305089800,41.2462,172.01,171.92,1.0]
[1641305090299,8.4,172.0,171.92,1.0]
[1641305090599,8.66,172.0,171.92,1.0]
[1641305090800,16.632,172.0,171.92,1.0]
[1641305091600,17.9788,172.0,171.92,1.0]
[1641305092002,19.61795116,172.0,171.92,1.0]
[1641305092402,8.7317,171.98,171.92,1.0]
[1641305092601,8.4,171.97,171.92,1.0]
[1641305093001,9.16,171.97,171.92,1.0]
[1641305093401,10.4922,171.97,171.92,1.0]
[1641305093602,2.38803511,171.96,171.92,1.0]
[1641305093802,10.78803511,171.96,171.92,1.0]
[1641305094003,11.54803511,171.96,171.92,1.0]
[1641305094707,11.54803511,171.96,171.8,2.31944782]
[1641305094904,8.7337,171.94,171.8,2.31944782]
[1641305095207,34.1667,171.93,171.77,50.48388081]
[1641305095405,34.6667,171.93,171.77,3.33178081]
[1641305095604,93.4467,171.93,171.77,2.03448081]
[1641305095812,8.7362,171.89,171.77,2.03448081]
[1641305096004,8.4,171.88,171.77,2.03448081]
[1641305096404,9.16,171.88,171.77,2.03448081]
[1641305096607,16.50507224,171.87,171.77,2.03448081]
[1641305096805,8.4,171.86,171.77,2.03448081]
[1641305097004,8.66,171.86,171.77,2.03448081]
[1641305097206,9.16,171.86,171.77,2.03448081]
[1641305098006,10.79915116,171.86,171.77,2.03448081]
[1641305098209,8.7386,171.85,171.77,2.03448081]
[1641305098406,8.4,171.84,171.77,2.03448081]
[1641305098609,8.66,171.84,171.77,2.03448081]
[1641305098806,9.16,171.84,171.77,2.03448081]
[1641305101310,9.16,171.84,171.77,1.1699483]
[1641305101708,16.83269368,171.84,171.68,1.3426]
[1641305101909,8.7402,171.81,171.63,47.4247]
[1641305102110,31.8126,171.8,171.63,47.4247]
[1641305102310,81.8723,171.79,171.63,47.4247]
[1641305102508,83.55899368,171.79,171.64,3.03962158]
[1641305102707,84.05899368,171.79,171.64,3.03962158]
[1641305102908,1.42669368,171.78,171.64,29.62305743]
[1641305103108,8.4,171.77,171.64,29.62305743]
[1641305103508,9.16,171.77,171.64,29.62305743]
[1641305104710,8.9,171.77,171.64,29.62305743]
[1641305105512,1.63915116,171.82,171.65,8.4]
[1641305105713,8.4,171.83,171.67,2.70112694]
[1641305105913,1.63915116,171.84,171.68,32.1245]
[1641305106145,8.4,171.83,171.7,2.70737049]
[1641305106915,8.66,171.83,171.7,2.70737049]
[1641305107717,8.4,171.83,171.7,2.70737049]
[1641305108016,1.42669368,171.82,171.68,23.7245]
[1641305108218,8.4,171.81,171.68,23.7245]
[1641305108418,8.9,171.81,171.68,23.7245]
[1641305108618,10.32669368,171.81,171.68,23.7245]
[1641305109120,10.58669368,171.81,171.69,2.3727696]
[1641305109420,8.9,171.81,171.69,2.3727696]
[1641305109620,8.9,171.81,171.69,3.7249696]
[1641305110521,9.16,171.81,171.69,3.7249696]
[1641305110922,9.16,171.81,171.69,2.3727696]
[1641305112123,10.4009,171.81,171.69,2.3727696]
[1641305114927,1.42669368,171.8,171.69,2.3727696]
[1641305115129,8.4,171.79,171.69,2.3727696]
[1641305115328,1.27466251,171.78,171.69,2.3727696]
[1641305115627,1.53466251,171.78,171.69,2.3727696]
[1641305115829,8.10790798,171.78,171.69,2.3727696]
[1641305117329,8.10790798,171.78,171.68,1.3075]
[1641305118429,8.10790798,171.78,171.69,2.60857393]
[1641305122739,8.10790798,171.78,171.68,1.3075]
[1641305122940,8.4,171.77,171.68,1.3075]
[1641305123339,9.16,171.77,171.67,25.4946]
[1641305123540,10.58669368,171.77,171.6,8.4]
[1641305123741,10.58669368,171.77,171.58,32.30281183]
[1641305123742,23.1798,171.76,171.64,2.30843497]
[1641305123941,8.4,171.75,171.64,2.30843497]
[1641305124340,9.16,171.75,171.64,2.30843497]
[1641305124740,10.58669368,171.75,171.64,2.30843497]
[1641305125548,9.16,171.75,171.64,2.30843497]
[1641305127742,8.9,171.75,171.64,2.30843497]
[1641305128543,8.4,171.75,171.64,2.30843497]
[1641305129442,24.4237,171.76,171.64,2.30843497]
[1641305129843,24.9237,171.76,171.64,25.79953497]
[1641305130042,24.9237,171.76,171.65,22.75723959]
[1641305130443,25.1837,171.76,171.65,24.05863959]
[1641305131141,31.25715956,171.76,171.65,24.05863959]
[1641305131843,30.01325956,171.76,171.65,24.05863959]
[1641305132242,6.83345956,171.76,171.65,24.05863959]
[1641305132844,6.57345956,171.76,171.65,24.05863959]
[1641305134149,6.83345956,171.76,171.65,24.05863959]
[1641305139353,6.33345956,171.76,171.65,24.05863959]
[1641305140759,6.83345956,171.76,171.65,24.05863959]
[1641305141960,6.83345956,171.76,171.65,1.3014]
[1641305144386,8.4,171.75,171.65,1.3014]
[1641305144588,8.66,171.75,171.65,1.3014]
[1641305144786,9.16,171.75,171.65,1.3014]
[1641305145388,10.58669368,171.75,171.64,2.03448081]
[1641305145787,19.32999368,171.75,171.64,2.03448081]
[1641305145988,10.58669368,171.75,171.64,2.03448081]
[1641305146487,6.07449919,171.74,171.64,4.7089044]
[1641305146687,13.67308712,171.73,171.64,4.7089044]
[1641305146888,15.5997808,171.73,171.64,2.03448081]
[1641305147088,15.8597808,171.73,171.64,2.03448081]
[1641305147290,1.42669368,171.72,171.64,2.03448081]
[1641305147493,16.74169368,171.72,171.64,2.03448081]
[1641305147689,79.0,171.71,171.62,0.59759546]
[1641305147891,8.4,171.7,171.62,0.59759546]
[1641305148091,8.66,171.7,171.62,0.59759546]
[1641305148291,10.58669368,171.7,171.62,0.59759546]
[1641305148489,1.42669368,171.69,171.62,0.59759546]
[1641305148791,8.4,171.68,171.62,0.59759546]
[1641305148990,13.62002023,171.66,171.62,0.59759546]
[1641305149190,8.4,171.65,171.62,0.59759546]
[1641305149393,6.06439994,171.64,171.62,0.59759546]
[1641305149691,14.46439994,171.64,171.62,0.59759546]
[1641305149891,15.22439994,171.64,171.62,0.59759546]
[1641305150891,14.96439994,171.64,171.62,0.59759546]
[1641305151094,6.56439994,171.64,171.62,0.59759546]
[1641305152892,6.82439994,171.64,171.62,0.59759546]
[1641305158093,6.56439994,171.64,171.62,0.59759546]
[1641305160500,6.82439994,171.64,171.62,0.59759546]
[1641305161096,6.82439994,171.64,171.6,2.49730574]
[1641305161499,6.32439994,171.64,171.56,23.9306]
[1641305162498,6.32439994,171.64,171.57,2.73291512]
[1641305162901,3.79219997,171.64,171.57,2.73291512]
[1641305163200,0.26,171.64,171.57,11.13291512]
[1641305163399,0.26,171.64,171.58,24.2959]
[1641305163599,0.02,171.69,171.58,24.2959]
[1641305165307,106.0307,171.7,171.58,24.2959]
[1641305165705,106.2907,171.7,171.58,24.2959]
[1641305166605,106.2907,171.7,171.58,25.613]
[1641305172010,106.0307,171.7,171.58,25.613]
[1641305172212,106.0307,171.7,171.58,26.113]
[1641305172213,8.4,171.69,171.58,26.113]
[1641305172410,8.9,171.69,171.58,26.113]
[1641305172611,8.9,171.69,171.58,25.613]
[1641305173414,9.16,171.69,171.58,25.613]
[1641305173612,9.16,171.69,171.58,24.2959]
[1641305174314,10.53915116,171.69,171.58,24.2959]
[1641305175115,8.9,171.69,171.58,24.2959]
[1641305175514,9.16,171.69,171.58,25.5304]
[1641305179819,8.9,171.69,171.58,25.5304]
[1641305181019,1.42669368,171.68,171.58,25.5304]
[1641305181218,1.42669368,171.68,171.55,0.59759546]
[1641305181219,8.4,171.67,171.55,0.59759546]
[1641305181420,35.2123,171.67,171.55,0.59759546]
[1641305181722,35.4723,171.67,171.55,0.59759546]
[1641305181920,35.4723,171.67,171.56,2.30751649]
[1641305184522,35.4723,171.67,171.55,0.59759546]
[1641305184725,35.4723,171.67,171.51,26.29397499]
[1641305184950,79.0,171.66,171.51,17.89397499]
[1641305185148,8.4,171.65,171.5,93.7]
[1641305185348,24.1268,171.64,171.5,93.7]
[1641305185548,10.78145995,171.63,171.5,93.7]
[1641305185750,23.2066,171.62,171.43,102.2842555]
[1641305185952,8.4,171.61,171.43,79.2855]
[1641305186150,8.4,171.61,171.41,8.4]
[1641305186349,50.09419368,171.6,171.39,8.6511]
[1641305186551,8.4,171.59,171.39,8.6511]
[1641305186753,8.7525,171.57,171.39,2.87481206]
[1641305186949,13.62043206,171.55,171.39,2.87481206]
[1641305187150,8.4,171.54,171.39,2.87481206]
[1641305187349,8.9,171.54,171.39,2.87481206]
[1641305187552,9.16,171.54,171.39,2.87481206]
[1641305188350,4.45972352,171.53,171.39,2.87481206]
[1641305188551,8.4,171.52,171.39,2.87481206]
[1641305188951,9.16,171.52,171.39,2.87481206]
[1641305190555,8.9,171.52,171.39,2.87481206]
[1641305192056,8.9,171.52,171.39,3.13481206]
[1641305193057,9.16,171.52,171.39,3.13481206]
[1641305193458,9.16,171.52,171.42,0.433821]
[1641305193659,9.16,171.52,171.43,2.89514989]
[1641305197260,9.16,171.52,171.42,24.97082883]
[1641305197460,1.42669368,171.51,171.42,1.6055253]
[1641305197863,2.18669368,171.51,171.42,1.6055253]
[1641305198262,1.42669368,171.51,171.42,3.78393299]
[1641305198460,1.63915116,171.53,171.42,4.54393299]
[1641305198661,1.63915116,171.53,171.42,12.94393299]
[1641305199162,0.02,171.58,171.42,12.94393299]
[1641305199363,0.02,171.58,171.43,52.33856934]
[1641305199664,8.4,171.57,171.43,52.33856934]
[1641305199863,23.777,171.56,171.43,52.33856934]
[1641305200063,24.037,171.56,171.43,52.33856934]
[1641305200264,25.70369368,171.56,171.43,52.33856934]
[1641305200863,25.70369368,171.56,171.42,13.61062667]
[1641305201067,8.4,171.55,171.42,3.78393299]
[1641305201464,8.9,171.55,171.42,3.78393299]
[1641305201665,88.6325,171.55,171.42,3.78393299]
[1641305202265,88.8925,171.55,171.42,3.78393299]
[1641305202766,88.8925,171.55,171.43,29.08673427]
[1641305203466,88.1325,171.55,171.43,29.34673427]
[1641305203693,79.7325,171.55,171.43,29.34673427]
[1641305203966,23.3142,171.57,171.43,29.34673427]
[1641305204165,23.3142,171.57,171.43,31.27342795]
[1641305204766,23.9944,171.58,171.44,8.4]
[1641305204965,31.90648319,171.6,171.44,32.2164]
[1641305205167,30.26733203,171.6,171.45,1.42669368]
[1641305205365,30.26733203,171.6,171.45,10.32669368]
[1641305205569,30.26733203,171.6,171.45,10.58669368]
[1641305205765,30.26733203,171.6,171.45,10.5037]
[1641305206467,30.52733203,171.6,171.45,10.5037]
[1641305206866,31.02733203,171.6,171.45,10.2437]
[1641305207267,30.76733203,171.6,171.45,10.2437]
[1641305207869,32.00853203,171.6,171.46,23.4425]
[1641305208370,32.00853203,171.6,171.46,23.9425]
[1641305208569,32.26853203,171.6,171.46,23.9425]
[1641305209472,32.26853203,171.6,171.46,24.2025]
[1641305209871,32.26853203,171.6,171.46,23.9425]
[1641305210472,33.90768319,171.6,171.46,24.2025]
[1641305210876,33.90768319,171.6,171.46,25.62919368]
[1641305211199,32.26853203,171.6,171.46,25.62919368]
[1641305212776,32.26853203,171.6,171.46,25.36919368]
[1641305213277,32.00853203,171.6,171.46,25.36919368]
[1641305214077,32.00853203,171.6,171.46,25.62919368]
[1641305214378,32.00853203,171.6,171.46,24.2025]
[1641305214576,32.00853203,171.6,171.46,23.9425]
[1641305214777,32.26853203,171.6,171.46,23.9425]
[1641305216777,0.66777172,171.59,171.46,23.9425]
[1641305217176,0.66777172,171.59,171.46,23.4425]
[1641305217578,33.64768319,171.6,171.46,23.4425]
[1641305218582,33.64768319,171.6,171.46,23.7025]
[1641305218982,33.64768319,171.6,171.46,24.2025]
[1641305219684,32.00853203,171.6,171.46,24.2025]
[1641305220083,32.26853203,171.6,171.46,24.2025]
[1641305220284,33.90768319,171.6,171.46,24.2025]
[1641305220485,33.90768319,171.6,171.48,2.53788879]
[1641305221284,8.4,171.59,171.48,2.53788879]
[1641305221484,9.16,171.59,171.48,2.53788879]
[1641305222085,6.07117823,171.58,171.48,2.53788879]
[1641305222491,6.83117823,171.58,171.44,78.8549]
[1641305222685,24.63479368,171.57,171.44,78.8549]
[1641305222885,25.13479368,171.57,171.44,79.3549]
[1641305223187,25.60725116,171.57,171.44,79.3549]
[1641305223385,1.2327,171.56,171.44,78.8549]
[1641305223589,9.8927,171.56,171.45,2.1597478]
[1641305223786,10.3927,171.56,171.45,2.1597478]
[1641305224786,12.03185116,171.56,171.45,2.1597478]
[1641305225396,1.42669368,171.55,171.45,2.1597478]
[1641305225596,1.68669368,171.55,171.45,2.1597478]
[1641305225797,25.78429368,171.55,171.45,2.1597478]
[1641305226000,25.78429368,171.55,171.4,1.3583]
[1641305226208,9.82669368,171.54,171.4,1.3583]
[1641305226407,10.32669368,171.54,171.4,1.3583]
[1641305226607,1.42669368,171.53,171.4,1.3583]
[1641305226807,35.45719368,171.53,171.4,1.3583]
[1641305227010,36.21719368,171.53,171.43,2.48380546]
[1641305228510,10.4309,171.53,171.43,2.48380546]
[1641305228711,9.16,171.53,171.43,2.48380546]
[1641305229710,33.1873,171.53,171.43,2.48380546]
[1641305230513,34.61399368,171.53,171.41,24.8017]
[1641305230714,34.61399368,171.53,171.42,2.1055253]
[1641305231317,34.61399368,171.53,171.42,1.6055253]
[1641305231716,35.96079368,171.53,171.42,1.6055253]
[1641305232917,37.59994484,171.53,171.42,1.6055253]
[1641305233320,37.59994484,171.53,171.44,0.59974487]
[1641305235720,46.35444484,171.53,171.44,0.59974487]
[1641305235920,37.59994484,171.53,171.44,0.59974487]
[1641305236326,1.63915116,171.51,171.44,0.59974487]
[1641305236522,79.0,171.49,171.42,1.6055253]
[1641305236723,79.0,171.47,171.29,1.3572]
[1641305236925,106.6154,171.46,171.29,1.3572]
[1641305237324,6.07280965,171.45,171.29,1.3572]
[1641305237525,8.4,171.44,171.3,29.23799891]
[1641305237725,9.82669368,171.44,171.3,32.14925965]
[1641305237923,10.58669368,171.44,171.3,32.14925965]
[1641305238125,24.84139368,171.43,171.3,32.14925965]
[1641305238325,8.4,171.42,171.3,29.23799891]
[1641305238524,8.66,171.42,171.3,29.23799891]
[1641305238726,9.16,171.42,171.3,29.23799891]
[1641305238925,8.9,171.42,171.3,30.66469259]
[1641305239329,10.32669368,171.42,171.31,2.45648309]
[1641305240125,10.58669368,171.42,171.31,2.45648309]
[1641305240627,9.16,171.42,171.31,2.45648309]
[1641305241127,9.16,171.42,171.3,30.46045773]
[1641305241531,9.16,171.42,171.3,30.72045773]
[1641305241729,8.9,171.42,171.3,30.72045773]
[1641305242730,0.5,171.42,171.3,32.14715141]
[1641305242931,14.97280965,171.45,171.3,56.40785141]
[1641305243335,1.42669368,171.44,171.3,56.40785141]
[1641305243530,1.68669368,171.44,171.3,56.40785141]
[1641305243737,16.12170096,171.44,171.3,54.14187568]
[1641305243934,9.82669368,171.43,171.3,51.955182]
[1641305244137,11.09149368,171.43,171.3,51.955182]
[1641305244331,1.42669368,171.42,171.3,51.955182]
[1641305244532,8.4,171.41,171.3,51.955182]
[1641305244735,8.4,171.41,171.31,2.95907537]
[1641305244959,10.58669368,171.41,171.31,2.95907537]
[1641305245363,10.58669368,171.41,171.3,28.194482]
[1641305245860,9.16,171.41,171.3,28.194482]
[1641305246462,9.16,171.41,171.3,31.0216303]
[1641305246662,1.42669368,171.4,171.3,31.0216303]
[1641305246861,1.92669368,171.4,171.3,31.0216303]
[1641305247061,1.68669368,171.4,171.3,31.0216303]
[1641305247264,0.26,171.4,171.3,31.0216303]
[1641305247464,8.66,171.41,171.3,31.0216303]
[1641305249067,8.4,171.41,171.3,31.0216303]
[1641305249270,6.07280965,171.45,171.3,31.0216303]
[1641305249465,6.07280965,171.45,171.31,23.0852]
[1641305249865,6.07280965,171.45,171.31,24.51189368]
[1641305250067,6.07280965,171.45,171.31,25.78649368]
[1641305250266,6.07280965,171.45,171.31,24.3598]
[1641305250468,6.07280965,171.45,171.31,24.6198]
[1641305250866,6.07280965,171.45,171.31,33.0198]
[1641305251066,6.07280965,171.45,171.31,34.44649368]
[1641305251467,6.07280965,171.45,171.31,41.17749368]
[1641305251869,83.4143,171.46,171.31,41.17749368]
[1641305252068,83.6743,171.46,171.31,41.17749368]
[1641305252867,83.6743,171.46,171.31,34.44649368]
[1641305253969,22.953,171.45,171.31,33.0198]
[1641305254472,23.213,171.45,171.31,32.7598]
[1641305254670,24.5494,171.45,171.31,32.7598]
[1641305259677,24.2894,171.45,171.31,32.7598]
[1641305260274,24.2894,171.45,171.31,33.0198]
[1641305260576,24.2894,171.45,171.31,34.44649368]
[1641305260775,24.5494,171.45,171.31,34.44649368]
[1641305261975,24.5494,171.45,171.31,35.50497808]
[1641305262276,24.5494,171.45,171.31,34.0782844]
[1641305262977,24.5494,171.45,171.31,33.8182844]
[1641305263976,24.2894,171.45,171.31,33.8182844]
[1641305264576,24.2894,171.45,171.31,34.0782844]
[1641305264780,24.2894,171.45,171.31,35.50497808]
[1641305265380,22.953,171.45,171.31,35.50497808]
[1641305265778,23.213,171.45,171.31,35.50497808]
[1641305267578,23.213,171.45,171.31,34.0782844]
[1641305267979,23.213,171.45,171.31,33.8182844]
[1641305268383,15.8176747,171.43,171.31,33.8182844]
[1641305268580,16.0776747,171.43,171.31,33.8182844]
[1641305269885,0.26,171.43,171.31,33.8182844]
[1641305270083,6.33205744,171.44,171.31,33.8182844]
[1641305270485,26.1426,171.43,171.31,33.8182844]
[1641305270886,26.4026,171.43,171.32,25.08597209]
[1641305271487,0.26,171.43,171.42,1.0584844]
[1641305271687,6.32439994,171.43,171.42,1.0584844]
[1641305274894,52.0,171.42,171.33,23.6698]
[1641305275092,52.26,171.42,171.33,23.6698]
[1641305275293,0.26,171.42,171.33,26.03497607]
[1641305275690,1.5457,171.44,171.33,26.03497607]
[1641305275893,1.5457,171.44,171.33,49.61534943]
[1641305276793,0.02,171.44,171.33,49.61534943]
[1641305277193,25.55835116,171.45,171.33,51.30204311]
[1641305277793,23.9192,171.45,171.33,51.30204311]
[1641305277994,23.9192,171.45,171.33,51.04204311]
[1641305278193,8.4,171.46,171.33,27.37224311]
[1641305279415,8.4,171.46,171.33,27.63224311]
[1641305279616,8.4,171.46,171.33,27.37224311]
[1641305280018,8.66,171.46,171.33,27.37224311]
[1641305280218,10.29915116,171.46,171.33,25.94554943]
[1641305280618,10.03915116,171.46,171.34,1.3281]
[1641305280819,1.63915116,171.46,171.34,2.75479368]
[1641305281017,1.63915116,171.46,171.34,27.27049368]
[1641305281221,1.63915116,171.46,171.34,25.8438]
[1641305281419,24.9693,171.48,171.34,25.8438]
[1641305281420,26.60845116,171.48,171.34,25.8438]